[Event "Titled Tuesday Blitz March 15 Late 2022"]
[White "Risteski, Emil"]
[Black "Prohorov, Olexandr"]
[WhiteFideId "15005267"]
[BlackFideId "14105578"]
[WhiteElo "2070"]
[BlackElo "1993"]
[Result "1-0"]
[Round "01"]
[TimeControl "180+1"]
[Date "2022.03.16"]
[WhiteClock "0:01:24"]
[BlackClock "0:00:10"]

1. d3 {[%clk 0:02:59]}  g6 {[%clk 0:02:55]} 2. f4 {[%clk 0:02:59]}  Bg7 {[%clk 0:02:53]} 3. e4 {[%clk 0:02:59]}  c5 {[%clk 0:02:53]} 4. Nf3 {[%clk 0:03:00]}  Nc6 {[%clk 0:02:53]} 5. Be2 {[%clk 0:03:00]}  d6 {[%clk 0:02:51]} 6. O-O {[%clk 0:03:01]}  Nf6 {[%clk 0:02:50]} 7. Qe1 {[%clk 0:02:55]}  O-O {[%clk 0:02:49]} 8. Qh4 {[%clk 0:02:51]}  Nd4 {[%clk 0:02:49]} 9. Bd1 {[%clk 0:02:51]}  b5 {[%clk 0:02:46]} 10. Nxd4 {[%clk 0:02:45]}  cxd4 {[%clk 0:02:46]} 11. Nd2 {[%clk 0:02:46]}  Qd7 {[%clk 0:02:28]} 12. h3 {[%clk 0:02:38]}  Ne8 {[%clk 0:02:00]} 13. f5 {[%clk 0:02:34]}  Bf6 {[%clk 0:01:45]} 14. Qf2 {[%clk 0:02:29]}  Ng7 {[%clk 0:01:43]} 15. g4 {[%clk 0:02:26]}  gxf5 {[%clk 0:01:25]} 16. gxf5 {[%clk 0:02:23]}  Kh8 {[%clk 0:01:20]} 17. Nf3 {[%clk 0:02:18]}  Rg8 {[%clk 0:01:20]} 18. Kh1 {[%clk 0:02:16]}  Nh5 {[%clk 0:01:13]} 19. Rg1 {[%clk 0:02:14]}  Bb7 {[%clk 0:01:14]} 20. Ng5 {[%clk 0:02:12]}  Bxg5 {[%clk 0:01:08]} 21. Bxg5 {[%clk 0:02:11]}  Nf6 {[%clk 0:01:08]} 22. Bxf6+ {[%clk 0:01:49]}  exf6 {[%clk 0:01:08]} 23. Bg4 {[%clk 0:01:50]}  d5 {[%clk 0:00:48]} 24. Qxd4 {[%clk 0:01:49]}  Qc6 {[%clk 0:00:35]} 25. Bf3 {[%clk 0:01:39]}  Qd6 {[%clk 0:00:18]} 26. exd5 {[%clk 0:01:31]}  Rxg1+ {[%clk 0:00:15]} 27. Rxg1 {[%clk 0:01:30]}  Rg8 {[%clk 0:00:16]} 28. Rxg8+ {[%clk 0:01:25]}  Kxg8 {[%clk 0:00:17]} 29. Kg2 {[%clk 0:01:25]}  a5 {[%clk 0:00:11]} 30. c4 {[%clk 0:01:24]}  bxc4 {[%clk 0:00:10]} 31. dxc4 {[%clk 0:01:24]} 1-0


[Site "https://www.chess.com"]

[Event "Titled Tuesday Blitz March 15 Late 2022"]
[White "Romanchuk, Viktor"]
[Black "Dubov, Daniil"]
[WhiteFideId "14109271"]
[BlackFideId "24126055"]
[WhiteElo "2242"]
[BlackElo "2791"]
[Result "0-1"]
[Round "01"]
[TimeControl "180+1"]
[Date "2022.03.15"]
[WhiteClock "0:01:06"]
[BlackClock "0:01:30"]

1. d4 {[%clk 0:03:00]}  Nf6 {[%clk 0:02:59]} 2. c4 {[%clk 0:03:00]}  e6 {[%clk 0:02:58]} 3. Nc3 {[%clk 0:03:00]}  Bb4 {[%clk 0:02:57]} 4. e3 {[%clk 0:03:00]}  d5 {[%clk 0:02:56]} 5. a3 {[%clk 0:02:59]}  Bxc3+ {[%clk 0:02:57]} 6. bxc3 {[%clk 0:03:00]}  c6 {[%clk 0:02:57]} 7. cxd5 {[%clk 0:02:51]}  cxd5 {[%clk 0:02:56]} 8. c4 {[%clk 0:02:50]}  O-O {[%clk 0:02:54]} 9. Nf3 {[%clk 0:02:49]}  b6 {[%clk 0:02:50]} 10. cxd5 {[%clk 0:02:48]}  Qxd5 {[%clk 0:02:49]} 11. Bd3 {[%clk 0:02:46]}  Ba6 {[%clk 0:02:46]} 12. O-O {[%clk 0:02:46]}  Bxd3 {[%clk 0:02:44]} 13. Qxd3 {[%clk 0:02:47]}  Nbd7 {[%clk 0:02:44]} 14. a4 {[%clk 0:02:41]}  e5 {[%clk 0:02:41]} 15. Qf5 {[%clk 0:02:35]}  e4 {[%clk 0:02:32]} 16. Qxd5 {[%clk 0:02:35]}  Nxd5 {[%clk 0:02:32]} 17. Nd2 {[%clk 0:02:36]}  f5 {[%clk 0:02:31]} 18. Ba3 {[%clk 0:02:36]}  Rfc8 {[%clk 0:02:29]} 19. Rfc1 {[%clk 0:02:35]}  Kf7 {[%clk 0:02:26]} 20. Kf1 {[%clk 0:02:33]}  Ke6 {[%clk 0:02:26]} 21. Nc4 {[%clk 0:02:15]}  Rc6 {[%clk 0:02:22]} 22. Ke1 {[%clk 0:01:52]}  Rac8 {[%clk 0:02:20]} 23. Nd2 {[%clk 0:01:52]}  Rxc1+ {[%clk 0:02:12]} 24. Rxc1 {[%clk 0:01:53]}  Rxc1+ {[%clk 0:02:12]} 25. Bxc1 {[%clk 0:01:54]}  Nc3 {[%clk 0:02:11]} 26. a5 {[%clk 0:01:53]}  bxa5 {[%clk 0:02:11]} 27. Bb2 {[%clk 0:01:47]}  Nd5 {[%clk 0:02:11]} 28. Nc4 {[%clk 0:01:44]}  a4 {[%clk 0:02:10]} 29. Kd2 {[%clk 0:01:42]}  N7f6 {[%clk 0:02:01]} 30. h3 {[%clk 0:01:38]}  f4 {[%clk 0:02:00]} 31. Ne5 {[%clk 0:01:29]}  g5 {[%clk 0:01:57]} 32. Nc6 {[%clk 0:01:29]}  h5 {[%clk 0:01:41]} 33. Nxa7 {[%clk 0:01:17]}  fxe3+ {[%clk 0:01:32]} 34. fxe3 {[%clk 0:01:16]}  Nb6 {[%clk 0:01:33]} 35. Kc2 {[%clk 0:01:06]}  Nfd5 {[%clk 0:01:30]} 36. Bc1 {[%clk 0:01:06]}  Nc4 {[%clk 0:01:30]} 0-1


[Site "https://www.chess.com"]

[Event "Titled Tuesday Blitz March 15 Late 2022"]
[White "Rosen, Eric"]
[Black "Chyngyz, Sultai"]
[WhiteFideId "2032562"]
[BlackFideId "13803158"]
[WhiteElo "2362"]
[BlackElo "1365"]
[Result "1-0"]
[Round "01"]
[TimeControl "180+1"]
[Date "2022.03.16"]
[WhiteClock "0:00:34"]
[BlackClock "0:00:12"]

1. d4 {[%clk 0:03:00]}  Nf6 {[%clk 0:02:54]} 2. Bf4 {[%clk 0:03:00]}  d5 {[%clk 0:02:49]} 3. e3 {[%clk 0:03:00]}  g6 {[%clk 0:02:47]} 4. Nc3 {[%clk 0:03:00]}  Bg7 {[%clk 0:02:48]} 5. h4 {[%clk 0:03:00]}  h5 {[%clk 0:02:47]} 6. Nf3 {[%clk 0:03:00]}  O-O {[%clk 0:02:47]} 7. Ne5 {[%clk 0:03:00]}  Nbd7 {[%clk 0:02:46]} 8. Be2 {[%clk 0:02:51]}  Nb6 {[%clk 0:02:39]} 9. a4 {[%clk 0:02:50]}  a5 {[%clk 0:02:37]} 10. Bf3 {[%clk 0:02:47]}  c6 {[%clk 0:02:35]} 11. Qe2 {[%clk 0:02:44]}  Be6 {[%clk 0:02:28]} 12. b3 {[%clk 0:02:23]}  Qc8 {[%clk 0:02:26]} 13. Nd3 {[%clk 0:02:23]}  Bg4 {[%clk 0:02:17]} 14. Nc5 {[%clk 0:02:20]}  Nbd7 {[%clk 0:02:08]} 15. Bxg4 {[%clk 0:02:18]}  Nxg4 {[%clk 0:02:06]} 16. Nxd7 {[%clk 0:02:05]}  Qxd7 {[%clk 0:02:05]} 17. f3 {[%clk 0:02:06]}  Nf6 {[%clk 0:02:03]} 18. Be5 {[%clk 0:02:06]}  Qe6 {[%clk 0:01:52]} 19. O-O {[%clk 0:02:00]}  Bh6 {[%clk 0:01:48]} 20. Nd1 {[%clk 0:01:53]}  Nd7 {[%clk 0:01:47]} 21. Bg3 {[%clk 0:01:53]}  f5 {[%clk 0:01:41]} 22. Bf2 {[%clk 0:01:48]}  f4 {[%clk 0:01:40]} 23. Re1 {[%clk 0:01:44]}  fxe3 {[%clk 0:01:37]} 24. Bxe3 {[%clk 0:01:43]}  Bg7 {[%clk 0:01:32]} 25. Nb2 {[%clk 0:01:42]}  Qf5 {[%clk 0:01:28]} 26. Nd3 {[%clk 0:01:41]}  e5 {[%clk 0:01:28]} 27. dxe5 {[%clk 0:01:38]}  Nxe5 {[%clk 0:01:26]} 28. Rad1 {[%clk 0:01:23]}  Rae8 {[%clk 0:01:21]} 29. Nxe5 {[%clk 0:01:14]}  Bxe5 {[%clk 0:01:09]} 30. Qf2 {[%clk 0:01:13]}  Bg7 {[%clk 0:01:02]} 31. Bc5 {[%clk 0:01:05]}  Rxe1+ {[%clk 0:00:57]} 32. Rxe1 {[%clk 0:01:06]}  Qf4 {[%clk 0:00:47]} 33. g3 {[%clk 0:00:48]}  Qf7 {[%clk 0:00:36]} 34. Bxf8 {[%clk 0:00:47]}  Qxf8 {[%clk 0:00:35]} 35. Kg2 {[%clk 0:00:48]}  Qb4 {[%clk 0:00:34]} 36. Qe2 {[%clk 0:00:47]}  Kh7 {[%clk 0:00:33]} 37. Rd1 {[%clk 0:00:47]}  Qc3 {[%clk 0:00:32]} 38. Qd3 {[%clk 0:00:46]}  Qf6 {[%clk 0:00:32]} 39. Re1 {[%clk 0:00:45]}  Qd6 {[%clk 0:00:30]} 40. Re2 {[%clk 0:00:44]}  d4 {[%clk 0:00:31]} 41. Re4 {[%clk 0:00:43]}  c5 {[%clk 0:00:31]} 42. g4 {[%clk 0:00:42]}  Kh6 {[%clk 0:00:28]} 43. Qd2+ {[%clk 0:00:39]}  Kh7 {[%clk 0:00:26]} 44. Qf4 {[%clk 0:00:39]}  Qd5 {[%clk 0:00:24]} 45. Re7 {[%clk 0:00:36]}  d3 {[%clk 0:00:15]} 46. cxd3 {[%clk 0:00:31]}  Qd8 {[%clk 0:00:10]} 47. Qf7 {[%clk 0:00:30]}  Qh8 {[%clk 0:00:09]} 48. gxh5 {[%clk 0:00:28]}  gxh5 {[%clk 0:00:10]} 49. Qxh5+ {[%clk 0:00:28]}  Kg8 {[%clk 0:00:09]} 50. Re8+ {[%clk 0:00:29]}  Bf8 {[%clk 0:00:10]} 51. Rxf8+ {[%clk 0:00:29]}  Kxf8 {[%clk 0:00:11]} 52. Qxh8+ {[%clk 0:00:29]}  Ke7 {[%clk 0:00:11]} 53. Qh6 {[%clk 0:00:30]}  Kd7 {[%clk 0:00:11]} 54. Qg6 {[%clk 0:00:30]}  c4 {[%clk 0:00:12]} 55. h5 {[%clk 0:00:31]}  c3 {[%clk 0:00:12]} 56. d4 {[%clk 0:00:31]}  b5 {[%clk 0:00:12]} 57. h6 {[%clk 0:00:31]}  bxa4 {[%clk 0:00:12]} 58. h7 {[%clk 0:00:31]}  axb3 {[%clk 0:00:12]} 59. h8=Q {[%clk 0:00:32]}  b2 {[%clk 0:00:13]} 60. Qhh7+ {[%clk 0:00:33]}  Kc8 {[%clk 0:00:12]} 61. Qgg8# {[%clk 0:00:34]} 1-0


[Site "https://www.chess.com"]

[Event "Titled Tuesday Blitz March 15 Late 2022"]
[White "Royal, Shreyas"]
[Black "Hartikainen, Jarmo"]
[WhiteFideId "448869"]
[BlackFideId "503134"]
[WhiteElo "1986"]
[BlackElo "2087"]
[Result "1-0"]
[Round "01"]
[TimeControl "180+1"]
[Date "2022.03.16"]
[WhiteClock "0:02:03"]
[BlackClock "0:00:09"]

1. d4 {[%clk 0:03:00]}  Nf6 {[%clk 0:02:58]} 2. c4 {[%clk 0:03:00]}  g6 {[%clk 0:02:58]} 3. Nc3 {[%clk 0:03:00]}  d5 {[%clk 0:02:58]} 4. cxd5 {[%clk 0:03:01]}  Nxd5 {[%clk 0:02:58]} 5. e4 {[%clk 0:03:02]}  Nxc3 {[%clk 0:02:58]} 6. bxc3 {[%clk 0:03:03]}  Bg7 {[%clk 0:02:59]} 7. Bc4 {[%clk 0:03:04]}  O-O {[%clk 0:02:58]} 8. Ne2 {[%clk 0:03:04]}  c5 {[%clk 0:02:58]} 9. O-O {[%clk 0:03:04]}  Nc6 {[%clk 0:02:54]} 10. Be3 {[%clk 0:03:03]}  cxd4 {[%clk 0:02:50]} 11. cxd4 {[%clk 0:03:04]}  b6 {[%clk 0:02:47]} 12. Qd2 {[%clk 0:02:58]}  Bb7 {[%clk 0:02:45]} 13. h4 {[%clk 0:02:57]}  h5 {[%clk 0:02:43]} 14. Rfd1 {[%clk 0:02:55]}  Rc8 {[%clk 0:02:41]} 15. Rac1 {[%clk 0:02:49]}  Na5 {[%clk 0:02:32]} 16. Bd3 {[%clk 0:02:48]}  Qd7 {[%clk 0:02:28]} 17. Bh6 {[%clk 0:02:43]}  Qg4 {[%clk 0:02:11]} 18. f3 {[%clk 0:02:38]}  Bxh6 {[%clk 0:02:04]} 19. Qxh6 {[%clk 0:02:39]}  Qxh4 {[%clk 0:02:04]} 20. e5 {[%clk 0:02:39]}  Rxc1 {[%clk 0:01:29]} 21. Rxc1 {[%clk 0:02:39]}  Rc8 {[%clk 0:01:28]} 22. Rd1 {[%clk 0:02:32]}  Nc6 {[%clk 0:01:05]} 23. Nf4 {[%clk 0:02:18]}  Nb4 {[%clk 0:00:17]} 24. Bxg6 {[%clk 0:02:02]}  fxg6 {[%clk 0:00:16]} 25. Qxg6+ {[%clk 0:02:02]}  Kh8 {[%clk 0:00:12]} 26. Ne6 {[%clk 0:02:03]}  Rg8 {[%clk 0:00:09]} 27. Qh6# {[%clk 0:02:03]} 1-0


[Site "https://www.chess.com"]

[Event "Titled Tuesday Blitz March 15 Late 2022"]
[White "Rozman, Levy"]
[Black "Kujawski, Adam"]
[WhiteFideId "2039877"]
[BlackFideId "1100920"]
[WhiteElo "2376"]
[BlackElo "2053"]
[Result "1-0"]
[Round "01"]
[TimeControl "180+1"]
[Date "2022.03.16"]
[WhiteClock "0:01:05"]
[BlackClock "0:00:05"]

1. d4 {[%clk 0:02:58]}  Nf6 {[%clk 0:02:59]} 2. c4 {[%clk 0:02:58]}  e6 {[%clk 0:02:59]} 3. Nc3 {[%clk 0:02:57]}  Bb4 {[%clk 0:02:59]} 4. e3 {[%clk 0:02:56]}  c5 {[%clk 0:02:58]} 5. a3 {[%clk 0:02:52]}  Bxc3+ {[%clk 0:02:58]} 6. bxc3 {[%clk 0:02:53]}  d6 {[%clk 0:02:56]} 7. Bd3 {[%clk 0:02:53]}  Nc6 {[%clk 0:02:56]} 8. Ne2 {[%clk 0:02:43]}  e5 {[%clk 0:02:55]} 9. O-O {[%clk 0:02:38]}  e4 {[%clk 0:02:41]} 10. Bc2 {[%clk 0:02:37]}  O-O {[%clk 0:02:41]} 11. Ng3 {[%clk 0:02:36]}  Re8 {[%clk 0:02:40]} 12. f3 {[%clk 0:02:35]}  exf3 {[%clk 0:02:30]} 13. Qxf3 {[%clk 0:02:34]}  Bg4 {[%clk 0:02:29]} 14. Qf4 {[%clk 0:02:28]}  Ne7 {[%clk 0:01:26]} 15. e4 {[%clk 0:02:08]}  Ng6 {[%clk 0:01:25]} 16. Qf2 {[%clk 0:02:08]}  Qc7 {[%clk 0:01:01]} 17. h3 {[%clk 0:01:42]}  Be6 {[%clk 0:00:53]} 18. Bg5 {[%clk 0:01:30]}  Bxc4 {[%clk 0:00:51]} 19. Bxf6 {[%clk 0:01:30]}  Bxf1 {[%clk 0:00:50]} 20. Rxf1 {[%clk 0:01:31]}  gxf6 {[%clk 0:00:49]} 21. Nh5 {[%clk 0:01:30]}  Re6 {[%clk 0:00:24]} 22. Nxf6+ {[%clk 0:01:21]}  Rxf6 {[%clk 0:00:20]} 23. Qxf6 {[%clk 0:01:22]}  cxd4 {[%clk 0:00:20]} 24. Bb3 {[%clk 0:01:22]}  Rf8 {[%clk 0:00:08]} 25. cxd4 {[%clk 0:01:22]}  Qe7 {[%clk 0:00:07]} 26. Qf5 {[%clk 0:01:19]}  Kg7 {[%clk 0:00:06]} 27. g3 {[%clk 0:01:14]}  f6 {[%clk 0:00:06]} 28. h4 {[%clk 0:01:13]}  Re8 {[%clk 0:00:06]} 29. h5 {[%clk 0:01:12]}  Nf8 {[%clk 0:00:06]} 30. Bd5 {[%clk 0:01:06]}  Ne6 {[%clk 0:00:06]} 31. h6+ {[%clk 0:01:04]}  Kxh6 {[%clk 0:00:05]} 32. Qxf6+ {[%clk 0:01:04]}  Qxf6 {[%clk 0:00:05]} 33. Rxf6+ {[%clk 0:01:05]}  Kg5 {[%clk 0:00:05]} 34. Rxe6 {[%clk 0:01:05]}  Rc8 {[%clk 0:00:05]} 1-0


[Site "https://www.chess.com"]

[Event "Titled Tuesday Blitz March 15 Late 2022"]
[White "Rustemov, Alexander"]
[Black "Kashefi, Amir Hosein"]
[WhiteFideId "4119002"]
[BlackFideId "12557935"]
[WhiteElo "2772"]
[BlackElo "2107"]
[Result "0-1"]
[Round "01"]
[TimeControl "180+1"]
[Date "2022.03.16"]
[WhiteClock "0:00:03"]
[BlackClock "0:00:07"]

1. d4 {[%clk 0:02:51]}  d5 {[%clk 0:02:56]} 2. c4 {[%clk 0:02:51]}  c6 {[%clk 0:02:56]} 3. Nc3 {[%clk 0:02:51]}  Nf6 {[%clk 0:02:55]} 4. e3 {[%clk 0:02:52]}  Bf5 {[%clk 0:02:53]} 5. cxd5 {[%clk 0:02:51]}  Nxd5 {[%clk 0:02:52]} 6. Bc4 {[%clk 0:02:50]}  e6 {[%clk 0:02:52]} 7. Nge2 {[%clk 0:02:49]}  Bg6 {[%clk 0:02:50]} 8. e4 {[%clk 0:02:48]}  Nb6 {[%clk 0:02:48]} 9. Bb3 {[%clk 0:02:48]}  N8d7 {[%clk 0:02:48]} 10. O-O {[%clk 0:02:48]}  Be7 {[%clk 0:02:48]} 11. f4 {[%clk 0:02:45]}  Bh5 {[%clk 0:02:47]} 12. Be3 {[%clk 0:02:43]}  O-O {[%clk 0:02:46]} 13. Qd2 {[%clk 0:02:33]}  Bxe2 {[%clk 0:02:44]} 14. Qxe2 {[%clk 0:02:31]}  c5 {[%clk 0:02:44]} 15. d5 {[%clk 0:02:28]}  exd5 {[%clk 0:02:37]} 16. Nxd5 {[%clk 0:02:28]}  Nxd5 {[%clk 0:02:36]} 17. Bxd5 {[%clk 0:02:27]}  Nf6 {[%clk 0:02:25]} 18. Bxb7 {[%clk 0:02:10]}  Rb8 {[%clk 0:02:24]} 19. Rad1 {[%clk 0:01:44]}  Qb6 {[%clk 0:02:22]} 20. Bd5 {[%clk 0:01:34]}  Qxb2 {[%clk 0:02:19]} 21. Rd2 {[%clk 0:01:30]}  Qb4 {[%clk 0:02:15]} 22. Bb3 {[%clk 0:01:08]}  Nxe4 {[%clk 0:02:02]} 23. Rd7 {[%clk 0:01:08]}  Bf6 {[%clk 0:02:02]} 24. Qc4 {[%clk 0:01:03]}  Qxc4 {[%clk 0:01:58]} 25. Bxc4 {[%clk 0:01:03]}  a5 {[%clk 0:01:49]} 26. Ra7 {[%clk 0:01:00]}  Bd4 {[%clk 0:01:15]} 27. Bxd4 {[%clk 0:00:56]}  cxd4 {[%clk 0:01:16]} 28. Rxa5 {[%clk 0:00:56]}  Nd2 {[%clk 0:00:53]} 29. Rc1 {[%clk 0:00:52]}  Rfc8 {[%clk 0:00:42]} 30. Ra4 {[%clk 0:00:51]}  d3 {[%clk 0:00:30]} 31. Kf2 {[%clk 0:00:51]}  Ne4+ {[%clk 0:00:30]} 32. Ke3 {[%clk 0:00:51]}  d2 {[%clk 0:00:30]} 33. Ra1 {[%clk 0:00:35]}  Nc3 {[%clk 0:00:28]} 34. Bxf7+ {[%clk 0:00:35]}  Kf8 {[%clk 0:00:23]} 35. Ra7 {[%clk 0:00:36]}  d1=Q {[%clk 0:00:22]} 36. Rxd1 {[%clk 0:00:36]}  Nxd1+ {[%clk 0:00:23]} 37. Kd4 {[%clk 0:00:36]}  Ra8 {[%clk 0:00:21]} 38. Rb7 {[%clk 0:00:35]}  Rd8+ {[%clk 0:00:16]} 39. Ke5 {[%clk 0:00:29]}  Nc3 {[%clk 0:00:11]} 40. Bb3 {[%clk 0:00:21]}  Ra5+ {[%clk 0:00:08]} 41. Ke6 {[%clk 0:00:22]}  Re8+ {[%clk 0:00:03]} 42. Kd6 {[%clk 0:00:22]}  Ne4+ {[%clk 0:00:04]} 43. Kc6 {[%clk 0:00:18]}  Ra6+ {[%clk 0:00:03]} 44. Kb5 {[%clk 0:00:17]}  Rf6 {[%clk 0:00:04]} 45. Kb4 {[%clk 0:00:14]}  Nd6 {[%clk 0:00:04]} 46. Rd7 {[%clk 0:00:13]}  Rxf4+ {[%clk 0:00:04]} 47. Kc5 {[%clk 0:00:13]}  Ne4+ {[%clk 0:00:05]} 48. Kc6 {[%clk 0:00:13]}  Ng5 {[%clk 0:00:03]} 49. g3 {[%clk 0:00:13]}  Rf6+ {[%clk 0:00:04]} 50. Kc7 {[%clk 0:00:13]}  Nf7 {[%clk 0:00:04]} 51. a4 {[%clk 0:00:12]}  Re7 {[%clk 0:00:04]} 52. Rxe7 {[%clk 0:00:07]}  Kxe7 {[%clk 0:00:05]} 53. Bc4 {[%clk 0:00:04]}  Ne5 {[%clk 0:00:05]} 54. Bb5 {[%clk 0:00:04]}  Nf3 {[%clk 0:00:04]} 55. a5 {[%clk 0:00:04]}  Nd4 {[%clk 0:00:05]} 56. Bc4 {[%clk 0:00:03]}  Ne6+ {[%clk 0:00:02]} 57. Kb7 {[%clk 0:00:04]}  Nc5+ {[%clk 0:00:02]} 58. Kc7 {[%clk 0:00:04]}  g5 {[%clk 0:00:02]} 59. h3 {[%clk 0:00:03]}  Rh6 {[%clk 0:00:02]} 60. g4 {[%clk 0:00:04]}  Rxh3 {[%clk 0:00:02]} 61. Kc6 {[%clk 0:00:04]}  Ne4 {[%clk 0:00:01]} 62. a6 {[%clk 0:00:04]}  Ra3 {[%clk 0:00:02]} 63. Kb6 {[%clk 0:00:03]}  Nd6 {[%clk 0:00:03]} 64. Bd5 {[%clk 0:00:01]}  Kf6 {[%clk 0:00:03]} 65. Bb7 {[%clk 0:00:01]}  Nxb7 {[%clk 0:00:02]} 66. axb7 {[%clk 0:00:02]}  Rb3+ {[%clk 0:00:02]} 67. Kc7 {[%clk 0:00:03]}  Rxb7+ {[%clk 0:00:03]} 68. Kxb7 {[%clk 0:00:03]}  Ke5 {[%clk 0:00:04]} 69. Kc6 {[%clk 0:00:03]}  Kf4 {[%clk 0:00:05]} 70. Kd5 {[%clk 0:00:04]}  Kxg4 {[%clk 0:00:06]} 71. Ke4 {[%clk 0:00:04]}  h5 {[%clk 0:00:06]} 72. Ke3 {[%clk 0:00:03]}  Kg3 {[%clk 0:00:07]} 73. Ke2 {[%clk 0:00:03]}  Kg2 {[%clk 0:00:07]} 0-1


[Site "https://www.chess.com"]

[Event "Titled Tuesday Blitz March 15 Late 2022"]
[White "Sailer, Mike"]
[Black "Araujo Sanchez, Josue"]
[WhiteFideId "2012901"]
[BlackFideId "6416896"]
[WhiteElo "2109"]
[BlackElo "2357"]
[Result "0-1"]
[Round "01"]
[TimeControl "180+1"]
[Date "2022.03.16"]
[WhiteClock "0:01:01"]
[BlackClock "0:01:43"]

1. d4 {[%clk 0:02:59]}  Nf6 {[%clk 0:02:59]} 2. Nf3 {[%clk 0:02:59]}  g6 {[%clk 0:02:58]} 3. Bf4 {[%clk 0:02:55]}  Bg7 {[%clk 0:02:34]} 4. e3 {[%clk 0:02:55]}  O-O {[%clk 0:02:33]} 5. Be2 {[%clk 0:02:51]}  d6 {[%clk 0:02:32]} 6. O-O {[%clk 0:02:50]}  Nc6 {[%clk 0:02:32]} 7. h3 {[%clk 0:02:48]}  Nd5 {[%clk 0:02:32]} 8. Bh2 {[%clk 0:02:48]}  e5 {[%clk 0:02:32]} 9. c4 {[%clk 0:02:48]}  Nde7 {[%clk 0:02:31]} 10. Nc3 {[%clk 0:02:49]}  f5 {[%clk 0:02:30]} 11. dxe5 {[%clk 0:02:38]}  Nxe5 {[%clk 0:02:27]} 12. Nxe5 {[%clk 0:02:38]}  dxe5 {[%clk 0:02:27]} 13. Nd5 {[%clk 0:02:36]}  c6 {[%clk 0:02:25]} 14. Nxe7+ {[%clk 0:02:35]}  Qxe7 {[%clk 0:02:18]} 15. Qc2 {[%clk 0:02:31]}  Be6 {[%clk 0:02:17]} 16. Rab1 {[%clk 0:02:16]}  Rad8 {[%clk 0:02:09]} 17. b4 {[%clk 0:02:15]}  f4 {[%clk 0:01:59]} 18. exf4 {[%clk 0:01:46]}  Bf5 {[%clk 0:01:59]} 19. Qb3 {[%clk 0:01:37]}  Bxb1 {[%clk 0:01:57]} 20. Rxb1 {[%clk 0:01:30]}  exf4 {[%clk 0:01:57]} 21. Bf3 {[%clk 0:01:19]}  Rd2 {[%clk 0:01:56]} 22. b5 {[%clk 0:01:06]}  cxb5 {[%clk 0:01:51]} 23. Qxb5 {[%clk 0:01:04]}  b6 {[%clk 0:01:47]} 24. Bd5+ {[%clk 0:01:02]}  Kh8 {[%clk 0:01:47]} 25. f3 {[%clk 0:01:01]}  Qe2 {[%clk 0:01:43]} 0-1


[Site "https://www.chess.com"]

[Event "Titled Tuesday Blitz March 15 Late 2022"]
[White "Selbes, Tarik"]
[Black "Hess, Robert"]
[WhiteFideId "6302513"]
[BlackFideId "2022036"]
[WhiteElo "2290"]
[BlackElo "2557"]
[Result "0-1"]
[Round "01"]
[TimeControl "180+1"]
[Date "2022.03.15"]
[WhiteClock "0:00:25"]
[BlackClock "0:00:53"]

1. Nf3 {[%clk 0:02:59]}  g6 {[%clk 0:03:00]} 2. g3 {[%clk 0:02:59]}  Bg7 {[%clk 0:02:58]} 3. Bg2 {[%clk 0:02:59]}  d6 {[%clk 0:02:57]} 4. O-O {[%clk 0:03:00]}  Nd7 {[%clk 0:02:58]} 5. d4 {[%clk 0:02:59]}  e6 {[%clk 0:02:59]} 6. b3 {[%clk 0:02:59]}  Ne7 {[%clk 0:02:59]} 7. Bb2 {[%clk 0:03:00]}  h6 {[%clk 0:03:00]} 8. c4 {[%clk 0:03:00]}  b6 {[%clk 0:02:59]} 9. Ne5 {[%clk 0:02:49]}  Rb8 {[%clk 0:02:41]} 10. Nc6 {[%clk 0:02:32]}  Nxc6 {[%clk 0:02:40]} 11. Bxc6 {[%clk 0:02:33]}  O-O {[%clk 0:02:41]} 12. Nc3 {[%clk 0:02:31]}  Bb7 {[%clk 0:02:41]} 13. Bxb7 {[%clk 0:02:28]}  Rxb7 {[%clk 0:02:42]} 14. d5 {[%clk 0:02:28]}  exd5 {[%clk 0:02:23]} 15. cxd5 {[%clk 0:02:24]}  b5 {[%clk 0:02:23]} 16. Rc1 {[%clk 0:02:12]}  Re8 {[%clk 0:02:20]} 17. Qd2 {[%clk 0:02:07]}  Nc5 {[%clk 0:02:15]} 18. f3 {[%clk 0:02:02]}  Qg5 {[%clk 0:02:10]} 19. Rfd1 {[%clk 0:01:51]}  b4 {[%clk 0:01:33]} 20. Na4 {[%clk 0:00:46]}  Nxa4 {[%clk 0:01:33]} 21. Bxg7 {[%clk 0:00:45]}  Kxg7 {[%clk 0:01:21]} 22. bxa4 {[%clk 0:00:45]}  Qxd2 {[%clk 0:01:08]} 23. Rxd2 {[%clk 0:00:45]}  Re3 {[%clk 0:01:09]} 24. Rdc2 {[%clk 0:00:38]}  Ra3 {[%clk 0:01:03]} 25. Rxc7 {[%clk 0:00:35]}  Rxc7 {[%clk 0:01:04]} 26. Rxc7 {[%clk 0:00:35]}  Rxa4 {[%clk 0:01:04]} 27. Rb7 {[%clk 0:00:30]}  a5 {[%clk 0:01:00]} 28. Rb6 {[%clk 0:00:30]}  Rxa2 {[%clk 0:01:00]} 29. e4 {[%clk 0:00:26]}  Rb2 {[%clk 0:00:54]} 30. Rxd6 {[%clk 0:00:25]}  a4 {[%clk 0:00:53]} 0-1


[Site "https://www.chess.com"]